[Event "American Cup Open Champions 2025"]
[Site "Saint Louis"]
[Date "2025.03.16"]
[Round "1.6"]
[White "Aronian, Levon"]
[Black "Sevian, Samuel"]
[Result "1-0"]
[Annotator "TA"]
[ECO "B22"]
[WhiteElo "2748"]
[BlackElo "2692"]
[PlyCount "91"]
[EventDate "2025.03.02"]
[EventType "k.o."]
[EventCountry "USA"]
[SourceTitle "playchess.com"]
[Source "ChessBase"]
[SourceQuality "1"]
[TimeControl "180+2"]

{[%evp 16,91,31,19,32,25,91,50,45,38,41,46,52,54,64,59,67,87,66,35,62,50,39,42,39,3,25,19,24,36,84,84,95,69,135,122,93,11,6,0,31,2,94,87,86,50,79,50,58,56,91,83,87,92,158,109,103,76,76,79,83,59,90,64,61,20,87,77,289,68,388,50,341,142,1749,802,29988,29989]} 1. e4 {[%emt 0:00:01]} c5 {[%emt 0:00:03]} 2. c3 {[%emt 0:00:00]} Nf6 {[%emt 0:00:08]} 3. e5 {[%emt 0:00:01]} Nd5 4. d4 cxd4 {[%emt 0:00:03]} 5. Nf3 {[%emt 0:00:01]} e6 {[%emt 0:00:03]} 6. cxd4 {[%emt 0:00:02]} d6 {[%emt 0:00:01]} 7. Bc4 {[%emt 0:00:06]} Nb6 {[%emt 0:00:03] 7...Be7 gains popularity.} 8. Bb3 {[%emt 0:00:14]} dxe5 {[%emt 0:00:37]} 9. Nxe5 {[%emt 0:00:01]} Bb4+ {[%emt 0:00:13] B22: Sicilian: 2 c3.} 10. Nc3 {[%emt 0:00:03]} N8d7 {[%emt 0:00:02]} (10... Nc6 $11) 11. Nf3 {[%emt 0:00:17]} (11. Qg4 {feels hotter.} O-O 12. O-O Nf6 13. Qg3) 11... Nf6 {[%emt 0:00:07] White is slightly better.} 12. Bg5 {[%emt 0:00:05]} h6 {[%emt 0:00:01]} 13. Bh4 {[%emt 0:00:00]} O-O {[%emt 0:00:09]} 14. O-O {[%emt 0:00:02]} Be7 {[%emt 0:00:03]} 15. Ne5 $146 {[%emt 0:00:09]} (15. Re1 Bd7 16. Qd3 Be8 17. Rad1 a6 18. Bc2 g6 19. Bb3 Kg7 20. Ne5 g5 21. Bg3 {½-½ Adams,P (2050)-Mazek,M (2147) BCF-chT3Nc 1516 (4NCL) 2016 (8.77)}) 15... Nfd7 {[%emt 0:00:28]} 16. Bxe7 {[%emt 0:00:07]} Qxe7 {[%emt 0:00:01]} 17. Qe2 {[%emt 0:00:02]} Nf6 {[%emt 0:00:03]} 18. Rad1 {[%emt 0:00:11] White has more active pieces. The black rooks are passive.} Bd7 {[%emt 0:00:02]} 19. Rd3 {[%emt 0:00:10]} Bc6 {[%emt 0:00:05]} 20. Rfd1 {[%emt 0:00:15]} Rad8 {[%emt 0:00:01]} 21. Rg3 {[%emt 0:00:14]} Nbd5 {[%emt 0:00:09]} 22. Bc2 {[%emt 0:00:21]} Qb4 {[%emt 0:00:56]} (22... Kh8 $14 {is more appropriate.}) 23. Qd2 {[%emt 0:00:15]} Kh8 {[%emt 0:00:04]} 24. Rh3 {[%emt 0:00:07][%cal Oh3h6] Rxh6+! would now be deadly.} Ng8 {[%emt 0:00:10]} ({Black should play} 24... Kg8 $1 $14) 25. Bb1 {[%emt 0:00:21]} Ndf6 {[%emt 0:00:07]} 26. Nxc6 ({White should play} 26. a3 $16 Qd6 27. g4) 26... bxc6 $11 {[%emt 0:00:01]} 27. Ne4 {[%emt 0:00:37]} Qe7 {[%emt 0:00:08]} 28. Rc3 {[%emt 0:00:04]} Nd5 {[%emt 0:00:06]} (28... e5 $11 {keeps the balance.} 29. Rc4 (29. Rxc6 Rxd4 30. Qe2 Rxd1+ 31. Qxd1 Nxe4 $11) 29... Rfe8) 29. Rxc6 $16 {[%emt 0:00:03]} Rb8 {[%emt 0:00:01]} 30. Nc3 {[%emt 0:00:06]} Ngf6 {[%emt 0:00:01]} 31. Nxd5 Nxd5 {[%emt 0:00:01]} 32. a3 {[%emt 0:00:07]} a5 {[%emt 0:00:03]} 33. Be4 {[%emt 0:00:01]} Nf6 {[%emt 0:00:01]} 34. Bf3 {[%emt 0:00:01]} Rb5 {[%emt 0:00:03]} (34... Rfd8 $142) 35. h3 {[%emt 0:00:03]} (35. Rdc1 $142) 35... Rfb8 {[%emt 0:00:02]} 36. Rc2 {[%emt 0:00:03]} Qd6 {[%emt 0:00:03]} 37. Rdc1 {[%emt 0:00:01]} Qd8 {[%emt 0:00:02] Inhibits Rc8.} 38. Qc3 {[%emt 0:00:03]} g6 {[%emt 0:00:01] [#]} 39. d5 $1 {[%emt 0:00:02]} exd5 {[%emt 0:00:02]} 40. Qd4 {[%emt 0:00:00]} Kg8 {[%emt 0:00:04]} (40... Qb6 $11 41. Qe5 Qe6 42. Qxe6 fxe6) 41. Rc6 {[%emt 0:00:03]} Nh7 {[%emt 0:00:02] [#]} (41... R5b6 $16 {was worth a try.}) 42. R1c2 $2 {[%emt 0:00:03]} (42. a4 $1 $18 {[%cal Ra4b5]} R5b7 43. Bxd5 (43. Qxd5 Qxd5 44. Bxd5 Rd7 $16)) 42... Ng5 $2 {[%emt 0:00:01][%mdl 8192]} (42... Nf8 $1 $14) 43. Be2 $2 {[%emt 0:00:01]} ({Only move:} 43. Bg4 $18 h5 44. Rc8 hxg4 45. Rxd8+ Rxd8 46. Re2 (46. hxg4 Ne6 $18)) 43... R5b7 $2 {[%emt 0:00:02][%mdl 8192]} (43... R5b6 $1 $14) 44. Ba6 {[%emt 0:00:01]} (44. Bg4 $18 {and the rest is easy.} h5 45. Rc8 hxg4 46. Qxg4 (46. Rxd8+ Rxd8 47. Qxg4 Ne6 $18)) 44... Qe7 $2 {[%emt 0:00:03][%mdl 8192]} (44... Ne6 $16 45. Rxe6 fxe6) 45. Bxb7 {[%emt 0:00:02]} (45. Rc8+ $142 Qd8 46. Rxd8+ Rxd8 47. Bxb7) 45... Rxb7 {[%emt 0:00:01]} 46. Rc8+ {[%emt 0:00:01] Weighted Error Value: White=0.59/Black=0.78  Loses game:     	---       	Black=4      Missed win:     	White=3     	---        Mistake:       	White=3     	Black=6      Inaccurate:     	White=7     	Black=6      OK:         	White=7     	Black=7      Best:        	White=3     	Black=1} 1-0

[Event "American Cup Open Champions 2025"]
[Site "Saint Louis"]
[Date "2025.03.16"]
[Round "1.6"]
[White "So, Wesley"]
[Black "Dominguez Perez, Leinier"]
[Result "1/2-1/2"]
[Annotator "TA"]
[ECO "D04"]
[WhiteElo "2748"]
[BlackElo "2741"]
[PlyCount "69"]
[EventDate "2025.03.02"]
[EventType "k.o."]
[EventCountry "USA"]
[SourceTitle "playchess.com"]
[Source "ChessBase"]
[SourceQuality "1"]
[TimeControl "180+2"]

{[%evp 9,69,12,2,19,5,12,57,0,0,2,22,8,21,15,20,7,29,29,25,0,0,0,2,0,0,0,0,0,0,0,0,0,0,0,6,-1,0,-4,0,0,0,0,0,0,3,0,6,-5,-5,-5,-6,-1,0,-16,0,-13,-13,-28,0,-19,0,-12]} 1. d4 {[%emt 0:00:01]} Nf6 {[%emt 0:00:02]} 2. Nf3 {[%emt 0:00:01]} d5 {[%emt 0:00:01]} 3. e3 {[%emt 0:00:01]} c5 {[%emt 0:00:03]} 4. Be2 {[%emt 0:00:02]} Nc6 {[%emt 0:00:03]} 5. O-O {[%emt 0:00:02]} Bg4 {[%emt 0:00:02]} 6. h3 {[%emt 0:00:03] D04: Colle System.} Bxf3 {[%emt 0:00:04]} 7. Bxf3 {[%emt 0:00:02]} e6 {[%emt 0:00:01]} 8. c3 {[%emt 0:00:06]} ({White should try} 8. c4 $1 $14) 8... Rc8 $11 {[%emt 0:00:06]} 9. Nd2 {[%emt 0:00:03]} a6 $146 {[%emt 0:00:03]} ({Predecessor:} 9... Qc7 10. Re1 cxd4 11. exd4 Bd6 12. Nf1 h6 13. Qd3 O-O 14. Ne3 Bh2+ 15. Kh1 Bd6 {½-½ Achatz,M-Mulde,R GER 2009 email 2011 (3)}) 10. a3 {[%emt 0:00:04]} Bd6 {[%emt 0:00:11]} 11. dxc5 {[%emt 0:00:14]} Bxc5 {[%emt 0:00:01]} 12. b4 {[%emt 0:00:14]} Ba7 {[%emt 0:00:08]} 13. c4 {[%emt 0:00:03]} Ne5 {[%emt 0:00:07]} 14. cxd5 {[%emt 0:00:40]} Nxf3+ {[%emt 0:00:07]} 15. Nxf3 {[%emt 0:00:08]} Qxd5 {[%emt 0:00:04]} 16. Bb2 {[%emt 0:00:06]} Qxd1 {[%emt 0:00:05]} 17. Rfxd1 {[%emt 0:00:01]} Ke7 {[%emt 0:00:02]} 18. Rac1 {[%emt 0:00:18]} Rhd8 {[%emt 0:00:21]} 19. Rxd8 {[%emt 0:00:32]} Rxc1+ {[%emt 0:00:08]} ({And not} 19... Kxd8 20. Rxc8+ Kxc8 21. Ng5 $16) 20. Bxc1 {[%emt 0:00:02]} Kxd8 {[%emt 0:00:01][%mdl 4096] Endgame KBN-KBN} 21. Bb2 {[%emt 0:00:01]} Ke7 {[%emt 0:00:09]} 22. Kf1 {[%emt 0:00:04]} Ne8 {[%emt 0:00:05]} 23. Ke2 {[%emt 0:00:04]} f6 {[%emt 0:00:07]} 24. a4 {[%emt 0:00:20]} Nd6 {[%emt 0:00:04]} 25. Kd3 {[%emt 0:00:15]} e5 {[%emt 0:00:31] [#] Hoping for ...e4+.} 26. Nd2 {[%emt 0:00:01]} Ke6 {[%emt 0:00:01]} 27. Bc3 {[%emt 0:00:13]} b5 {[%emt 0:00:14]} 28. axb5 {[%emt 0:00:01]} axb5 {[%emt 0:00:01]} 29. g4 {[%emt 0:00:02]} g6 {[%emt 0:00:05]} 30. f3 {[%emt 0:00:01]} f5 {[%emt 0:00:12]} 31. gxf5+ {[%emt 0:00:08]} gxf5 {[%emt 0:00:04]} 32. Bb2 {[%emt 0:00:01]} Bb6 {[%emt 0:00:14]} 33. Bc3 {[%emt 0:00:01]} Ba7 {[%emt 0:00:11]} 34. Bb2 {[%emt 0:00:01]} Bb6 {[%emt 0:00:01]} 35. Bc3 {[%emt 0:00:01] A rather calm draw.   Weighted Error Value: White=0.06 (flawless) /Black=0.05 (flawless)   Mistake:       	White=1     	---        OK:         	White=14    	Black=16     Best:        	---       	Black=2} 1/2-1/2

[Event "American Cup Open Champions 2025"]
[Site "Saint Louis"]
[Date "2025.03.16"]
[Round "1.7"]
[White "Dominguez Perez, Leinier"]
[Black "So, Wesley"]
[Result "1-0"]
[Annotator "TA"]
[ECO "C54"]
[WhiteElo "2741"]
[BlackElo "2748"]
[PlyCount "109"]
[EventDate "2025.03.02"]
[EventType "k.o."]
[EventCountry "USA"]
[SourceTitle "playchess.com"]
[Source "ChessBase"]
[SourceQuality "1"]
[TimeControl "180+2"]

{[%evp 13,109,20,26,18,20,3,25,20,25,19,37,8,17,16,11,-33,20,22,31,27,46,42,58,34,65,55,101,83,110,110,105,92,117,124,137,120,110,122,133,38,35,32,70,21,98,68,84,41,69,37,67,85,74,28,28,30,27,27,29,17,18,0,0,-45,0,-25,0,-41,-26,-155,-149,-169,-166,-222,-216,-214,0,0,0,0,142,132,142,122,137,148,138,127,152,128,141,129,154,158,157,94,538,497]} 1. e4 {[%emt 0:00:01]} e5 {[%emt 0:01:00]} 2. Nf3 {[%emt 0:00:01]} Nc6 {[%emt 0:00:01]} 3. Bc4 {[%emt 0:00:01]} Nf6 {[%emt 0:00:02]} 4. d3 {[%emt 0:00:01]} Bc5 {[%emt 0:00:00]} 5. c3 {[%emt 0:00:01]} d6 {[%emt 0:00:01]} 6. O-O {[%emt 0:00:02]} a6 {[%emt 0:00:03]} 7. a4 {[%emt 0:00:01] 7.Re1 is the recent fashion.} O-O {[%emt 0:00:03]} 8. Re1 {[%emt 0:00:01] C54: Giuoco Piano: 4 c3 Nf6, main lines with 5 d4 and 5 d3.} Ba7 {[%emt 0:00:01]} (8... h6 9. h3 Re8 10. Nbd2 Be6 11. Bxe6 Rxe6 12. b4 Ba7 13. Qc2 Qd7 14. Rb1 b5 15. Ra1 Ree8 16. Nf1 d5 17. Bd2 Rad8 18. Ng3 Qe6 19. Nf5 {½-½ Dominguez Perez,L (2758)-So,W (2772) Saint Louis Rapid 2021 (4)}) 9. h3 {[%emt 0:00:01]} Be6 {[%emt 0:00:01]} 10. Bxe6 {[%emt 0:00:02] White has an edge.} fxe6 {[%emt 0:00:01]} 11. b4 {[%emt 0:00:02]} Nh5 {[%emt 0:00:02][%cal Oa7f2]} 12. Be3 {[%emt 0:00:01]} Nf4 {[%emt 0:00:04]} 13. Rf1 $5 $146 {[%emt 0:00:01][%mdl 8] An interesting novelty.} (13. Ra2 {simplifies} Qe7 14. Na3 Bxe3 15. fxe3 Ng6 16. Rf2) (13. b5 Ne7 14. Kh2 Neg6 15. bxa6 bxa6 16. d4 Nh4 17. Nxh4 Qxh4 18. Nd2 Nd3 19. Qb3 Nxe1 20. Qxe6+ {0-1 Sethuraman,S (2634)-Jumabayev,R (2641) Saint Louis Winter-A 2019 (2)}) 13... Qf6 {[%emt 0:00:16][%cal Of4h3]} 14. Nbd2 {[%emt 0:00:02]} Qg6 {[%emt 0:00:20]} (14... Nxd3 $15 15. Bxa7 Nxa7 (15... Rxa7 16. g3 $14)) 15. Bxf4 $11 {[%emt 0:00:02] A sharp opening} Rxf4 {[%emt 0:00:01]} 16. b5 {[%emt 0:00:01]} Ne7 {[%emt 0:00:06]} 17. bxa6 {[%emt 0:00:06]} bxa6 {[%emt 0:00:00]} 18. Qb3 {[%emt 0:00:16] White plays on the queen side and is better} Rff8 {[%emt 0:00:12]} 19. Qc4 {[%emt 0:00:26][%csl LRa6,LRc7]} Rfc8 {[%emt 0:00:16]} (19... Qh6 $14 {deserves consideration.}) 20. a5 $16 {[%emt 0:00:09][%cal Oa1b1]} (20. Qxa6 $2 Bxf2+ 21. Rxf2 Rxa6 $19) 20... Qf6 {[%emt 0:00:15]} 21. Rab1 $1 {[%emt 0:00:13]} (21. Qxa6 $2 Bxf2+ 22. Rxf2 Rxa6 $19) 21... d5 {[%emt 0:00:01]} 22. Qa4 {[%emt 0:00:02]} (22. Qxa6 $2 Bxf2+ 23. Rxf2 Rxa6 $19) 22... Bc5 {[%emt 0:00:10][%cal Ba7c5,Bc5d6,Bd6e5][%mdl 32]} 23. d4 {[%emt 0:00:31]} Bd6 {[%emt 0:00:04]} 24. Rfe1 {[%emt 0:00:09]} Ng6 {[%emt 0:00:21]} 25. exd5 $1 {[%emt 0:00:07]} exd5 {[%emt 0:00:00]} 26. Qc6 {[%emt 0:00:02]} (26. Qa2 $16 {and dxe5 would now be decisive} Kh8 27. Qxd5) 26... Ne7 $14 {[%emt 0:00:04]} 27. dxe5 {[%emt 0:00:31]} Bxe5 {[%emt 0:00:02]} 28. Qc5 {[%emt 0:00:27] White is much more active.} (28. Qa4 $14 Bxc3 29. Qd7) 28... Qd6 {[%emt 0:00:15]} (28... Bd6 $11 29. Qe3 Ng6) 29. Qe3 $1 $16 {[%emt 0:00:05]} Bf6 {[%emt 0:00:01]} 30. Qd3 {[%emt 0:00:15]} Rd8 {[%emt 0:00:07]} 31. Nd4 {[%emt 0:00:06]} Bxd4 {[%emt 0:00:03]} 32. cxd4 {[%emt 0:00:01]} Nc6 {[%emt 0:00:03][%cal Be7c6,Bc6a5,Ba5c4][%mdl 32]} 33. Nf3 {[%emt 0:00:12]} ({White should play} 33. Ra1 $16) 33... Nxa5 $11 {[%emt 0:00:00]} 34. Ng5 {[%emt 0:00:05]} Qg6 {[%emt 0:00:01]} 35. Qxg6 {[%emt 0:00:05]} hxg6 {[%emt 0:00:01]} 36. Ne6 {[%emt 0:00:00]} Rd7 {[%emt 0:00:06]} 37. h4 {[%emt 0:00:03][%mdl 1024] White has compensation.} Nc4 {[%emt 0:00:03]} 38. Nf4 {[%emt 0:00:02]} Kh7 {[%emt 0:00:05]} 39. Ne6 {[%emt 0:00:03]} a5 {[%emt 0:00:01]} 40. Ng5+ {[%emt 0:00:02]} (40. Rb7 $5) 40... Kg8 {[%emt 0:00:01]} 41. Re6 {[%emt 0:00:02]} (41. Ra1 $1 $11) 41... a4 $17 {[%emt 0:00:03]} 42. Rbe1 {[%emt 0:00:01]} Nd6 {[%emt 0:00:04] Inhibits Re8+.} 43. Rxg6 {[%emt 0:00:02]} (43. g4 $142) 43... a3 $19 {[%emt 0:00:01]} 44. Rge6 {[%emt 0:00:01]} a2 $2 {[%emt 0:00:01]} (44... Rdd8 $1 $19 {Strongly threatening ...a2.} 45. Ra1 Nb5) 45. Ra1 $11 {[%emt 0:00:01]} Rdd8 {[%emt 0:00:02]} 46. Re2 {[%emt 0:00:01]} Nf5 {[%emt 0:00:01]} (46... Nb5 $1 $11 {remains equal.}) 47. Nf3 $1 $16 {[%emt 0:00:02]} ({Much weaker is} 47. Rexa2 $6 Rxa2 48. Rxa2 Nxd4 $11) ({Stronger than} 47. Raxa2 Nxd4 48. Red2 Rxa2 49. Rxa2 c5 $17) 47... Rdb8 {[%emt 0:00:07]} 48. Rexa2 {[%emt 0:00:01]} Rxa2 49. Rxa2 {[%emt 0:00:00][%mdl 4096] Endgame KRN-KRN. White is a pawn up.} Rb4 {[%emt 0:00:02] [#]} 50. Rd2 {[%emt 0:00:06]} Kf7 {[%emt 0:00:02]} 51. g3 {[%emt 0:00:00][%cal Bg2g3,Bg3g4][%mdl 32]} Kf6 {[%emt 0:00:01]} 52. Kg2 {[%emt 0:00:01]} Rc4 {[%emt 0:00:04] [#]} 53. g4 $1 {[%emt 0:00:02]} Nd6 {[%emt 0:00:00]} 54. Ne5 {[%emt 0:00:02]} (54. Re2 $142) 54... Nb5 $2 {[%emt 0:00:03][%mdl 8192]} 55. Nxc4 {[%emt 0:00:01] White used his chance.   Weighted Error Value: White=0.19 (very precise) /Black=0.41  Loses game:     	---       	Black=1      Missed win:     	---       	Black=1      Mistake:       	White=6     	Black=4      Inaccurate:     	White=6     	Black=6      OK:         	White=16    	Black=16     Best:        	White=2     	Black=3      Strong:       	White=4     	---} 1-0